bitfinex/quotes_SOLUSD_20260114
["timestamp","ask_amount","ask_price","bid_price","bid_amount"]
[1768414946801,0.67225201,146.48,146.43,12.44]
[1768414947107,0.67225201,146.48,146.43,3.91176699]
[1768414949307,7.49958866,146.47,146.44,3.91176699]
[1768414949687,7.49958866,146.47,146.43,4.63488394]
[1768414949884,7.49958866,146.47,146.43,0.72311695]
[1768414950085,7.49958866,146.47,146.43,4.63488394]
[1768414950624,0.67225201,146.49,146.45,4.63488394]
[1768414950800,0.67225201,146.5,146.44,0.72311695]
[1768414951112,0.67225201,146.5,146.45,4.63488394]
[1768414951708,7.49819057,146.5,146.45,4.63488394]
[1768414952708,7.49819057,146.5,146.46,0.72311695]
[1768414953993,7.49819057,146.5,146.46,4.63488394]
[1768414954202,6.82593856,146.5,146.47,4.63488394]
[1768414955108,6.82593856,146.5,146.47,0.72311695]
[1768414955497,7.49819057,146.5,146.45,4.63488394]
[1768414955702,7.49819057,146.5,146.46,0.72311695]
[1768414958119,7.49819057,146.5,146.46,4.63488394]
[1768414958313,7.49819057,146.5,146.46,0.72311695]
[1768414958619,7.49819057,146.5,146.46,4.63488394]
[1768414959502,7.49819057,146.5,146.46,4.57488394]
[1768414960025,7.49819057,146.5,146.46,0.66311695]
[1768414960200,7.49819057,146.5,146.46,4.57488394]
[1768414961202,7.49819057,146.5,146.48,3.91176699]
[1768414961203,6.82593856,146.5,146.48,3.91176699]
[1768414961398,6.82593856,146.5,146.47,3.91176699]
[1768414961718,6.82593856,146.5,146.46,4.63488394]
[1768414962018,0.67225201,146.52,146.48,4.63488394]
[1768414962198,7.49772462,146.52,146.48,4.63488394]
[1768414962520,6.82547261,146.52,146.49,0.72311695]
[1768414962700,7.49690041,146.53,146.5,3.91176699]
[1768414962899,6.8246484,146.53,146.5,4.63488394]
[1768414963423,6.8246484,146.53,146.5,4.38488394]
[1768414964325,7.49690041,146.53,146.49,0.72311695]
[1768414964518,7.49690041,146.53,146.49,4.63488394]
[1768414965216,7.49690041,146.53,146.49,0.72311695]
[1768414965807,7.49690041,146.53,146.49,3.2256995]
[1768414970022,23.88600102,146.53,146.49,3.2256995]
[1768414970338,24.55825303,146.53,146.49,3.2256995]
[1768414970733,0.69911832,146.52,146.48,0.71621945]
[1768414970934,0.69911832,146.52,146.49,2.50258255]
[1768414971118,7.52431681,146.52,146.49,2.50258255]
[1768414971724,7.52431681,146.52,146.49,3.218802]
[1768414972532,7.52431681,146.52,146.49,0.71621945]
[1768414972737,7.52431681,146.52,146.49,3.218802]
[1768414973843,17.06135262,146.53,146.5,0.71621945]
[1768414974426,17.76047094,146.53,146.5,0.71621945]
[1768414974816,0.69911832,146.52,146.46,0.71621945]
[1768414975037,0.69911832,146.52,146.48,2.50258255]
[1768414975241,0.69911832,146.52,146.46,0.71621945]
[1768414975440,0.69911832,146.52,146.45,3.218802]
[1768414975441,0.69911832,146.5,146.45,3.218802]
[1768414976031,7.52552285,146.49,146.46,2.50258255]
[1768414976341,14.94258255,146.52,146.45,0.71621945]
[1768414976342,17.06287983,146.52,146.49,0.71621945]
[1768414976529,17.06287983,146.52,146.49,3.218802]
[1768414976731,17.76199815,146.52,146.49,0.71621945]
[1768414976930,17.76199815,146.52,146.48,2.50258255]
[1768414977439,17.76199815,146.52,146.48,3.218802]
[1768414977642,6.82549542,146.51,146.48,3.218802]
[1768414981742,7.52461374,146.51,146.48,0.71621945]
[1768414982047,7.52461374,146.51,146.48,0.65621945]
[1768414982248,0.69911832,146.5,146.46,2.50258255]
[1768414982443,0.69911832,146.5,146.44,2.50258255]
[1768414982740,38.83175962,146.51,146.45,2.50258255]
[1768414982741,0.69911832,146.49,146.45,2.50258255]
[1768414982946,0.69911832,146.5,146.45,2.50258255]
[1768414983742,6.82640453,146.49,146.45,2.50258255]
[1768414983928,6.82640453,146.49,146.45,3.218802]
[1768414984243,7.52552285,146.49,146.45,0.71621945]
[1768414984421,7.52552285,146.49,146.45,3.218802]
[1768414986037,7.52552285,146.49,146.41,29.71502069]
[1768414986038,0.69911832,146.48,146.44,3.218802]
[1768414986343,0.69911832,146.47,146.42,3.218802]
[1768414986523,0.69911832,146.47,146.43,3.218802]
[1768414987228,0.69911832,146.47,146.44,0.71621945]
[1768414987842,6.82731355,146.48,146.44,0.71621945]
[1768414988243,6.82731355,146.48,146.45,3.218802]
[1768414988439,6.82731355,146.48,146.45,0.71621945]
[1768414988646,7.52643187,146.48,146.44,0.71621945]
[1768414988841,0.69911832,146.47,146.43,0.71621945]
[1768414989551,0.69911832,146.46,146.41,15.858802]
[1768414989723,0.69911832,146.46,146.42,0.71621945]
[1768414989923,0.69911832,146.46,146.41,12.64]
[1768414989924,7.52738735,146.45,146.41,0.2]
[1768414990429,7.52738735,146.45,146.42,0.71621945]
[1768414990658,0.69911832,146.4,146.34,0.91621945]
[1768414990840,0.69911832,146.42,146.37,0.71621945]
[1768414991041,23.89894161,146.45,146.39,0.71621945]
[1768414991042,14.94258255,146.44,146.39,0.71621945]
[1768414991348,13.13911832,146.44,146.39,0.71621945]
[1768414991551,15.64170087,146.44,146.39,0.71621945]
[1768414992030,10.03090253,146.43,146.39,0.71621945]
[1768414992353,3.20170087,146.42,146.37,0.71621945]
[1768414993056,0.69911832,146.42,146.38,0.71621945]
[1768414993257,6.82920166,146.43,146.39,0.71621945]
[1768414994031,9.33178421,146.43,146.39,0.71621945]
[1768414994547,10.03090253,146.43,146.39,0.71621945]
[1768414995143,7.52831998,146.43,146.39,0.71621945]
[1768414995346,2.50258255,146.42,146.39,0.71621945]
[1768414995662,2.50258255,146.41,146.37,0.71621945]
[1768414996236,27.10390669,146.43,146.37,0.71621945]
[1768414997151,2.50258255,146.41,146.37,7.54821503]
[1768414997457,2.50258255,146.4,146.37,0.71621945]
[1768414998246,9.33275103,146.41,146.37,0.71621945]
[1768414998456,2.50258255,146.41,146.37,0.71621945]
[1768414999947,6.8293933,146.43,146.38,0.71621945]
[1768415000148,3.20170087,146.44,146.38,0.71621945]
[1768415001362,120.16884151,146.47,146.4,0.68637173]
[1768415001556,0.71947292,146.47,146.4,0.68637173]
[1768415001861,2.50258255,146.45,146.4,0.68637173]
[1768415002660,2.50258255,146.45,146.41,0.68637173]
[1768415003663,2.50258255,146.44,146.41,0.68637173]
[1768415003868,2.50258255,146.45,146.41,0.68637173]
[1768415006262,2.50258255,146.44,146.41,0.68637173]
[1768415006467,0.71947292,146.44,146.4,0.68637173]
[1768415006758,2.50258255,146.43,146.4,0.68637173]
[1768415007351,0.71947292,146.44,146.4,0.68637173]
[1768415007557,12.46,146.48,146.42,0.68637173]
[1768415007558,9.3305593,146.46,146.42,0.68637173]
[1768415007938,2.50258255,146.46,146.42,0.68637173]
[1768415008537,2.50258255,146.46,146.43,0.68637173]
[1768415009137,10.04990232,146.46,146.42,0.68637173]
[1768415009744,6.82746301,146.47,146.43,0.68637173]
[1768415010070,3.22205547,146.46,146.41,6.8299402]
[1768415010270,0.71947292,146.46,146.42,0.68637173]
[1768415010577,10.04994941,146.46,146.42,0.68637173]
[1768415010752,3.22205547,146.46,146.42,0.68637173]
[1768415011457,10.04986321,146.46,146.42,0.68637173]
[1768415012371,3.22205547,146.46,146.42,0.68637173]
[1768415012570,0.71947292,146.46,146.42,0.68637173]
[1768415012746,0.71947292,146.51,146.44,0.68637173]
[1768415012942,0.71947292,146.52,146.45,0.68637173]
[1768415013144,3.22205547,146.54,146.48,0.68637173]
[1768415013948,19.28329209,146.56,146.46,0.68637173]
[1768415013949,2.50258255,146.5,146.46,0.68637173]
[1768415014245,0.71947292,146.55,146.47,0.68637173]
[1768415014444,2.50258255,146.53,146.5,0.68637173]
[1768415014947,2.50258255,146.54,146.5,0.68637173]
[1768415015762,3.22205547,146.55,146.5,0.68637173]
[1768415016168,2.50258255,146.55,146.5,0.68637173]
[1768415016568,2.50258255,146.55,146.52,0.68637173]
[1768415017274,2.50258255,146.55,146.51,0.68637173]
[1768415018277,0.71947292,146.56,146.51,0.68637173]
[1768415018478,120.15343268,146.6,146.51,0.68637173]
[1768415018479,3.22205547,146.58,146.52,0.68637173]
[1768415018652,3.22205547,146.58,146.54,0.68637173]
[1768415018852,2.50258255,146.57,146.54,0.68637173]
[1768415019957,3.22205547,146.56,146.52,0.68637173]
[1768415020377,2.50258255,146.55,146.52,0.68637173]
[1768415021050,0.71947292,146.54,146.5,0.68637173]
[1768415021253,3.22205547,146.54,146.5,7.51226997]
[1768415021473,0.71947292,146.54,146.5,7.51226997]
[1768415021679,2.50258255,146.54,146.52,0.68637173]
[1768415021875,2.50258255,146.55,146.52,0.68637173]
[1768415022067,0.71947292,146.57,146.53,0.68637173]
[1768415022274,2.50258255,146.56,146.53,0.68637173]
[1768415024280,2.50258255,146.55,146.53,0.68637173]
[1768415024658,2.50258255,146.56,146.53,7.51085572]
[1768415025276,2.50258255,146.55,146.53,0.68637173]
[1768415025455,2.50258255,146.55,146.52,0.68637173]
[1768415026171,2.50258255,146.55,146.52,7.51121374]
[1768415026485,2.50258255,146.56,146.52,7.51121374]
[1768415026780,2.50258255,146.56,146.52,7.51121875]
[1768415027278,0.71947292,146.57,146.53,0.68637173]
[1768415027483,3.90894234,146.56,146.53,0.68637173]
[1768415028196,7.54184164,146.58,146.53,0.68637173]
[1768415028384,3.90894234,146.57,146.53,0.68637173]
[1768415028772,3.90894234,146.57,146.53,7.51072728]
[1768415028963,0.71947292,146.58,146.54,0.68637173]
[1768415029287,3.90894234,146.57,146.54,0.68637173]
[1768415029469,0.71947292,146.58,146.54,0.68637173]
[1768415029674,3.90894234,146.57,146.54,0.68637173]
[1768415030482,0.71947292,146.58,146.54,0.68637173]
[1768415030781,3.90894234,146.57,146.54,0.68637173]
[1768415031076,0.71947292,146.58,146.54,0.68637173]
[1768415031270,4.59956848,146.6,146.55,0.65456693]
[1768415031673,0.69062614,146.6,146.55,0.65456693]
[1768415031863,4.59956848,146.6,146.55,0.65456693]
[1768415032385,3.90894234,146.59,146.55,0.65456693]
[1768415032883,3.90894234,146.6,146.55,0.65456693]
[1768415033093,3.90894234,146.6,146.57,0.65456693]
[1768415033556,4.59956848,146.6,146.57,0.65456693]
[1768415033871,0.69062614,146.58,146.54,7.4785611]
[1768415034058,0.69062614,146.59,146.55,0.65456693]
[1768415034254,0.69062614,146.6,146.56,0.65456693]
[1768415034462,3.90894234,146.6,146.56,0.65456693]
[1768415035165,19.95110251,146.62,146.57,0.65456693]
[1768415035371,3.90894234,146.6,146.57,0.65456693]
[1768415035569,0.69062614,146.61,146.57,0.65456693]
[1768415035899,0.69062614,146.6,146.56,7.47756822]
[1768415036081,4.59956848,146.6,146.56,7.47756822]
[1768415038380,0.69062614,146.6,146.56,7.47756822]
[1768415038582,4.59956848,146.6,146.56,7.47756822]
[1768415040496,4.59956848,146.59,146.56,0.65456693]
[1768415040797,4.59956848,146.58,146.54,6.82388759]
[1768415041290,4.59956848,146.58,146.54,7.47845452]
[1768415042095,0.69062614,146.58,146.54,7.47845452]
[1768415042305,4.59956848,146.58,146.54,7.47845452]
[1768415042892,4.59956848,146.57,146.53,0.65456693]
[1768415043089,0.69062614,146.55,146.52,6.82482847]
[1768415043407,0.63062616,146.55,146.52,7.4793954]
[1768415043576,3.90894234,146.56,146.52,7.4793954]
[1768415043770,19.26189028,146.59,146.53,0.65456693]
[1768415044089,3.90894234,146.58,146.53,0.65456693]
[1768415045385,4.59956848,146.58,146.53,0.65456693]
[1768415045690,0.69062614,146.58,146.53,0.65456693]
[1768415045888,0.69062614,146.59,146.55,7.47817661]
[1768415046780,0.69062614,146.6,146.56,0.65456693]
[1768415049575,0.69062614,146.6,146.57,0.65456693]
[1768415049776,4.59956848,146.6,146.57,0.65456693]
[1768415050891,0.69062614,146.6,146.57,0.65456693]
[1768415051107,6.82038316,146.62,146.54,0.65456693]
[1768415051108,4.59956848,146.59,146.54,0.65456693]
[1768415051272,0.69062614,146.57,146.51,13.09456693]
[1768415051472,0.69062614,146.56,146.52,7.47944414]
[1768415052280,0.66062615,146.56,146.52,7.47944414]
[1768415052483,6.82130783,146.6,146.53,4.56350927]
[1768415052698,10.73025017,146.6,146.55,0.65456693]
[1768415053186,10.72975947,146.61,146.55,0.65456693]
[1768415053392,10.72975947,146.61,146.56,0.65456693]
[1768415053688,3.90894234,146.6,146.54,4.56350927]
[1768415053995,6.82081713,146.61,146.55,0.65456693]
[1768415054174,0.69062614,146.6,146.56,7.47770936]
[1768415054580,0.69062614,146.6,146.56,0.65456693]
[1768415055079,0.69062614,146.59,146.56,0.65456693]
[1768415057002,6.82130069,146.6,146.56,0.65456693]
[1768415057208,0.69062614,146.61,146.57,0.65456693]
[1768415058105,0.69062614,146.6,146.56,7.47769464]
[1768415059710,0.69062614,146.6,146.56,0.65456693]
[1768415059909,0.69062614,146.58,146.54,7.47819697]
[1768415060114,0.69062614,146.58,146.54,0.65456693]
[1768415060409,0.72182589,146.56,146.52,6.82490742]
[1768415060613,0.72182589,146.56,146.52,7.50313953]
[1768415060816,0.67636664,146.54,146.5,0.65487294]
[1768415061109,3.90894234,146.57,146.51,11.38899885]
[1768415061695,10.7316814,146.57,146.52,7.47982296]
[1768415061905,17.05132047,146.62,146.55,0.65487294]
[1768415062214,3.90894234,146.6,146.55,0.65487294]
[1768415062799,3.90894234,146.6,146.55,4.56381528]
[1768415062986,4.58530898,146.6,146.55,4.56381528]
[1768415063615,0.67636664,146.6,146.56,4.56381528]
[1768415063914,0.67636664,146.6,146.56,11.3867156]
[1768415064515,11.40636298,146.61,146.56,7.47777326]
[1768415065189,0.67636664,146.6,146.56,7.47777326]
[1768415067586,0.67636664,146.62,146.58,4.56381528]
[1768415067793,0.67636664,146.63,146.59,4.56381528]
[1768415068888,27.87652839,146.66,146.6,0.65487294]
[1768415068889,4.58530898,146.65,146.6,0.65487294]
[1768415069094,0.67636664,146.64,146.6,0.65487294]
[1768415069305,0.67636664,146.64,146.6,7.47593998]
[1768415069533,16.11289503,146.66,146.62,0.65487294]
[1768415069735,16.11289503,146.66,146.61,3.90894234]
[1768415069736,0.67636664,146.65,146.61,0.65487294]
[1768415070222,0.67636664,146.65,146.6,7.47613295]
[1768415070417,0.67636664,146.65,146.6,11.38507529]
[1768415070613,0.67636664,146.64,146.6,11.38507529]
[1768415071437,0.67636664,146.64,146.6,4.56381528]
[1768415071620,0.67636664,146.63,146.59,7.4764211]
[1768415071823,0.67636664,146.63,146.59,11.38536344]
[1768415072537,15.43652839,146.66,146.62,4.56381528]
[1768415072933,16.11289503,146.66,146.62,4.56381528]
[1768415073139,16.11289503,146.66,146.62,7.47521191]
[1768415073320,16.11289503,146.66,146.63,3.90894234]
[1768415075242,22.9314021,146.66,146.63,3.90894234]
[1768415075428,0.67636664,146.65,146.63,3.90894234]
[1768415077145,7.49536818,146.65,146.62,3.90894234]
[1768415078252,0.67636664,146.65,146.63,3.90894234]
[1768415078749,15.43652839,146.66,146.64,4.56381528]
[1768415079230,22.2550427,146.66,146.64,0.65487294]
[1768415079429,22.2550427,146.66,146.62,0.65487294]
[1768415079430,0.67636664,146.65,146.62,0.65487294]
[1768415080628,0.67636664,146.65,146.62,4.56381528]
[1768415082122,0.67636664,146.65,146.61,7.47561364]
[1768415082352,0.67636664,146.65,146.61,11.38455598]
[1768415083550,15.43652839,146.66,146.62,4.56381528]
[1768415083728,16.11289503,146.66,146.62,4.56381528]
[1768415085547,16.11289503,146.66,146.62,11.38416535]
[1768415086056,0.67636664,146.65,146.62,0.65487294]
[1768415086357,0.67636664,146.65,146.61,6.82074193]
[1768415086358,0.67636664,146.65,146.61,4.56381528]
[1768415088067,0.67636664,146.64,146.61,4.56381528]
[1768415088551,7.49568523,146.65,146.61,4.56381528]
[1768415089463,0.67636664,146.64,146.59,13.09487294]
[1768415089760,0.67636664,146.63,146.59,0.65487294]
[1768415089958,0.67636664,146.63,146.59,3.15309519]
[1768415091463,0.69667217,146.62,146.59,3.15309519]
[1768415091649,0.69667217,146.62,146.58,0.69169892]
[1768415093559,9.31817933,146.63,146.6,0.69169892]
[1768415093560,0.69667217,146.63,146.6,0.69169892]
[1768415093878,14.93822225,146.65,146.61,0.69169892]
[1768415093879,0.69667217,146.65,146.61,0.69169892]
[1768415094053,0.69667217,146.65,146.61,3.18992117]
[1768415094665,0.69667217,146.65,146.61,0.69169892]
[1768415094876,0.69901992,146.64,146.61,0.69169892]
[1768415095049,7.49838009,146.65,146.61,3.18992117]
[1768415095255,35.37475169,146.66,146.62,0.6745141]
[1768415096368,15.43652839,146.66,146.64,0.6745141]
[1768415096563,15.4065284,146.66,146.64,0.6745141]
[1768415097689,15.37652841,146.66,146.64,0.6745141]
[1768415098875,15.37652841,146.66,146.63,3.16844324]
[1768415099173,15.37652841,146.66,146.63,0.67022099]
[1768415100768,15.37652841,146.66,146.65,0.69167424]
[1768415101156,0.1,146.67,146.66,0.69167424]
[1768415101578,0.1,146.68,146.66,0.69167424]
[1768415102770,0.07,146.68,146.66,0.69167424]
[1768415103085,0.07,146.68,146.65,0.65360228]
[1768415103267,0.07,146.68,146.66,0.65360228]
[1768415104560,0.07,146.68,146.65,7.47244416]
[1768415104875,7.50849187,146.72,146.68,0.60135794]
[1768415105179,7.50871716,146.71,146.66,9.9177967]
[1768415105386,0.69248012,146.7,146.66,9.9177967]
[1768415107567,0.71887163,146.69,146.64,22.35897966]
[1768415107894,0.71887163,146.69,146.64,15.53958019]
[1768415108279,0.71887163,146.69,146.64,12.44]
[1768415108280,0.71887163,146.67,146.64,12.44]
[1768415108589,0.71887163,146.67,146.63,7.42118573]
[1768415108788,0.71887163,146.69,146.65,3.09958019]
[1768415109692,0.71887163,146.69,146.65,9.9184554]
[1768415110090,0.71887163,146.69,146.65,3.09958019]
[1768415110570,0.71887163,146.69,146.66,0.60135794]
[1768415110773,7.50409493,146.7,146.66,0.60135794]
[1768415111373,0.68737902,146.69,146.64,0.60135794]
[1768415111684,7.50451211,146.69,146.64,9.91882746]
[1768415112191,7.50451211,146.69,146.65,0.60135794]
[1768415113075,0.68737902,146.68,146.63,22.35927052]
[1768415113468,0.68737902,146.68,146.64,0.60135794]
[1768415113770,0.68737902,146.68,146.64,3.09958019]
[1768415114570,6.8167301,146.7,146.66,0.60135794]
[1768415114765,7.50410912,146.7,146.66,0.60135794]
[1768415115573,10.00233137,146.7,146.66,0.60135794]
[1768415116073,0.68737902,146.69,146.65,0.60135794]
[1768415116401,0.68737902,146.69,146.64,0.60135794]
[1768415116402,0.68737902,146.68,146.64,0.60135794]
[1768415116972,0.68737902,146.68,146.63,12.44]
[1768415117177,0.68737902,146.67,146.62,22.35965013]
[1768415117581,0.68737902,146.67,146.63,0.60135794]
[1768415118781,0.68737902,146.67,146.63,9.91934921]
[1768415118984,0.6846203,146.68,146.64,3.09958019]
[1768415119872,0.6846203,146.69,146.64,3.09958019]
[1768415120091,0.6846203,146.69,146.65,0.60135794]
[1768415122202,0.6846203,146.69,146.65,7.42026993]
[1768415124097,0.6846203,146.69,146.65,7.36026993]
[1768415124501,0.70774769,146.68,146.64,6.81921665]
[1768415126107,0.70774769,146.68,146.64,7.36057459]
[1768415127693,0.70774769,146.68,146.64,9.85879684]
[1768415128095,0.70774769,146.68,146.64,7.36057459]
[1768415128609,0.70774769,146.67,146.63,9.85930241]
[1768415129710,0.70774769,146.67,146.62,22.29975776]
[1768415129926,0.70774769,146.66,146.62,19.80153551]
[1768415130614,0.70774769,146.66,146.63,6.81978952]
[1768415131291,0.70774769,146.67,146.63,7.36114746]
[1768415131492,0.70774769,146.67,146.63,9.85936971]
[1768415131689,0.70774769,146.67,146.64,0.54135794]
[1768415132524,0.70774769,146.69,146.64,3.03958019]
[1768415132699,0.70774769,146.69,146.65,0.54135794]
[1768415133329,0.70774769,146.69,146.64,0.54135794]
[1768415133509,3.20596994,146.7,146.66,0.54135794]
[1768415133712,10.02260857,146.7,146.66,0.54135794]
[1768415134012,0.70774769,146.69,146.65,7.36031463]
[1768415134921,0.70774769,146.69,146.65,6.81895669]
[1768415135422,0.70774769,146.69,146.65,9.85853688]
[1768415135811,0.70774769,146.69,146.65,7.36031463]
[1768415136811,0.70774769,146.7,146.66,0.54135794]
[1768415137006,0.70774769,146.7,146.65,6.81895669]
[1768415137007,0.1,146.73,146.69,0.54135794]
[1768415137209,0.1,146.73,146.69,3.03958019]
[1768415138025,0.1,146.73,146.7,2.49822225]
[1768415138614,0.80774769,146.73,146.7,2.49822225]
[1768415138910,0.1,146.73,146.71,6.81616795]
[1768415139513,0.1,146.73,146.71,9.3143902]
[1768415140417,1e-08,146.74,146.72,2.93958019]
[1768415140622,0.1,146.75,146.73,2.49822225]
[1768415141019,0.1,146.75,146.72,0.44135794]
[1768415141020,0.1,146.75,146.72,7.25689901]
[1768415141326,0.1,146.75,146.72,9.31376332]
[1768415141527,0.80774769,146.75,146.72,9.31376332]
[1768415141728,0.80774769,146.75,146.69,17.48386299]
[1768415142033,0.70774769,146.74,146.71,12.44]
[1768415142204,0.70774769,146.74,146.7,9.31456202]
[1768415142404,0.70774769,146.74,146.7,21.75456202]
[1768415142605,0.70774769,146.73,146.69,12.44]
[1768415142821,0.70774769,146.72,146.69,12.44]
[1768415143112,0.70774769,146.74,146.7,9.31451924]
[1768415143312,0.70774769,146.74,146.71,2.49822225]
[1768415143534,0.70774769,146.74,146.7,7.25765493]
[1768415143832,7.5225596,146.74,146.7,0.44135794]
[1768415144034,0.70774769,146.73,146.7,2.49822225]
[1768415144731,0.70774769,146.73,146.69,19.25709345]
[1768415145033,0.70774769,146.73,146.7,2.49822225]
[1768415145225,0.70774769,146.73,146.71,2.49822225]
[1768415145533,0.70774769,146.73,146.69,19.25709345]
[1768415145534,0.70774769,146.73,146.7,2.49822225]
[1768415147236,0.70774769,146.73,146.69,12.44]
[1768415147533,0.70774769,146.73,146.71,2.49822225]
[1768415147834,0.70774769,146.73,146.71,2.43822225]
[1768415148736,0.1,146.75,146.73,0.44135794]
[1768415148915,0.80774769,146.76,146.74,2.49822225]
[1768415149117,0.70774769,146.75,146.72,12.42]
[1768415149727,0.70774769,146.74,146.71,14.91822225]
[1768415150134,0.70774769,146.74,146.71,12.42]
[1768415150340,0.70774769,146.74,146.69,14.91822225]
[1768415150341,0.6893526,146.73,146.69,14.91822225]
[1768415150540,0.6893526,146.73,146.69,12.42]
[1768415150841,26.3483286,146.75,146.69,12.42]
[1768415150842,7.50368383,146.75,146.71,2.49822225]
[1768415151040,0.6893526,146.74,146.71,2.49822225]
[1768415151227,0.6893526,146.74,146.7,2.49822225]
[1768415151539,0.6893526,146.74,146.7,3.89844108]
[1768415151844,0.6893526,146.74,146.71,3.89844108]
[1768415152834,0.6893526,146.74,146.7,4.33979902]
[1768415154438,0.6893526,146.74,146.71,3.89844108]
[1768415154822,7.5042733,146.74,146.7,4.33979902]
[1768415155145,0.6893526,146.73,146.7,3.89844108]
[1768415155335,0.6893526,146.74,146.7,4.33979902]
[1768415156228,0.4517539,146.77,146.74,0.34135794]
[1768415156427,0.4517539,146.77,146.73,4.23979902]
[1768415156627,1.1411065,146.77,146.73,4.23979902]
[1768415158132,0.6893526,146.76,146.72,16.31844108]
[1768415159049,0.6893526,146.76,146.72,3.89844108]
[1768415161529,0.6893526,146.76,146.72,11.05544046]
[1768415161728,0.4517539,146.77,146.74,4.23979902]
[1768415161936,0.4517539,146.77,146.76,3.89844108]
[1768415162144,0.05593337,146.77,146.76,3.89844108]
[1768415162342,0.6893526,146.79,146.76,3.89844108]
[1768415163050,15.29730753,146.8,146.76,10.71222477]
[1768415163389,15.29730753,146.8,146.77,3.89844108]
[1768415163557,15.29730753,146.8,146.78,3.89844108]
[1768415164152,15.29730753,146.8,146.76,10.71222477]
[1768415164447,15.29730753,146.8,146.77,12.42]
[1768415164661,0.6893526,146.78,146.73,0.6615956]
[1768415164962,3.89844108,146.79,146.73,4.56003668]
[1768415165358,10.71135837,146.78,146.73,0.6615956]
[1768415165845,3.89844108,146.77,146.73,0.6615956]
[1768415166046,10.71135837,146.78,146.73,0.6615956]
[1768415166244,6.81291729,146.78,146.74,0.6615956]
[1768415166854,10.88094022,146.78,146.74,0.6615956]
[1768415167464,10.88094022,146.78,146.73,0.6615956]
[1768415167658,0.68415489,146.77,146.73,0.6615956]
[1768415168474,4.07821199,146.74,146.69,0.6615956]
[1768415168850,10.89318555,146.74,146.69,7.4786275]
[1768415169053,10.89318555,146.74,146.69,0.6615956]
[1768415169265,4.5725088,146.73,146.69,0.6615956]
[1768415169851,0.67406772,146.73,146.69,0.6615956]
[1768415170370,4.5725088,146.73,146.69,0.6615956]
[1768415171466,0.67406772,146.73,146.69,0.6615956]
[1768415171858,7.48974607,146.73,146.69,0.6615956]
[1768415172247,11.38818715,146.73,146.69,0.6615956]
[1768415175744,3.89844108,146.72,146.66,3.89844108]
[1768415175945,4.06802293,146.72,146.67,0.6615956]
[1768415176876,23.85377553,146.73,146.62,79.26408856]
[1768415176877,0.17472758,146.7,146.65,11.37880454]
[1768415177080,4.07316866,146.7,146.66,0.6615956]
[1768415177864,10.88984109,146.7,146.66,0.6615956]
[1768415179675,0.67906062,146.69,146.64,7.48056174]
[1768415179880,4.5775017,146.69,146.64,7.48056174]
[1768415180581,4.5775017,146.69,146.65,7.48197509]
[1768415180781,7.53758022,146.7,146.66,0.66319246]
[1768415180984,11.4360213,146.7,146.66,0.66319246]
[1768415181175,0.72090779,146.72,146.67,0.66319246]
[1768415181483,4.61934887,146.72,146.67,0.66319246]
[1768415181665,11.43523377,146.72,146.67,0.66319246]
[1768415182484,4.03678329,146.71,146.67,0.66319246]
[1768415182669,4.04255069,146.69,146.66,0.66319246]
[1768415183272,0.14410961,146.69,146.66,0.66319246]
[1768415184192,10.71536232,146.7,146.66,0.66319246]
[1768415184396,10.85370453,146.7,146.66,0.66319246]
[1768415185169,3.89844108,146.71,146.67,0.66319246]
[1768415185576,4.61352321,146.71,146.67,0.66319246]
[1768415185792,11.42972838,146.71,146.67,0.66319246]
[1768415186999,7.5312873,146.71,146.67,0.66319246]
[1768415187179,11.42972838,146.71,146.67,0.66319246]
[1768415187897,7.5312873,146.71,146.67,0.66319246]
[1768415188375,11.42972838,146.71,146.67,0.66319246]
[1768415188976,6.81543771,146.73,146.68,0.66319246]
[1768415189192,6.81543771,146.73,146.69,0.66319246]
[1768415189392,6.81495636,146.74,146.7,0.66319246]
[1768415190793,4.61934887,146.75,146.7,0.66319246]
[1768415190794,6.8143307,146.75,146.71,0.66319246]
[1768415190988,3.89844108,146.76,146.71,0.66319246]
[1768415191511,4.03678329,146.75,146.71,0.66319246]
[1768415193608,6.81477443,146.74,146.71,0.66319246]
[1768415193793,167.06917798,146.8,146.74,0.66319246]
[1768415193794,28.43821532,146.8,146.74,0.66319246]
[1768415193971,19.9166564,146.8,146.75,0.66319246]
[1768415194177,6.81245316,146.79,146.75,0.66319246]
[1768415194905,22.830467,146.8,146.76,0.66319246]
[1768415195081,15.29730753,146.8,146.77,0.66319246]
[1768415196712,15.29730753,146.8,146.78,0.66319246]
[1768415197078,14.57230753,146.8,146.79,0.66319246]
[1768415197281,14.57230753,146.8,146.76,3.89844108]
[1768415197482,14.57230753,146.8,146.77,3.89844108]
[1768415198299,14.57230753,146.8,146.76,10.71213445]
[1768415199213,14.57230753,146.8,146.77,0.66319246]
[1768415200596,21.38430647,146.8,146.77,0.66319246]
[1768415201412,14.57230753,146.8,146.77,0.66319246]
[1768415204096,21.38435473,146.8,146.77,0.66319246]
[1768415205019,14.57230753,146.8,146.77,0.66319246]
[1768415206311,22.10520945,146.8,146.77,0.66319246]
[1768415206518,21.38430166,146.8,146.77,0.66319246]
[1768415206894,14.57230753,146.8,146.77,0.66319246]